Cogmind - Beta 14 @@@ ROGUE MODE // 2024.11.27 @ 13:04:06 Player: skye Result: Destroyed self with Subdweller Shrapnel Launcher Performance ------------- Evolutions (0) 0 Regions Visited (2) 400 Robots Destroyed (27) 135 Value Destroyed (454) 454 Prototype IDs (1) 20 Alien Tech Used (0) 0 Bonus (0) 0 TOTAL SCORE: 1009 Bonus ------- None Cogmind --------- Core Integrity 0/250 Matter 146/300 Energy 100/100 System Corruption 1% Temperature Cool (0) Movement Rolling (120) Ox1 Location -10/Subcaves Parts ------- > --- POWER (1) -------- (None) > --- PROPULSION (2) --- Subdweller Monowheel > --- UTILITY (2) ------ Large Storage Unit Signal Interpreter > --- WEAPON (2) ------- Subdweller Beam Cannon Subdweller Shrapnel Launcher > --- INVENTORY (15) --- Light Ion Engine Light Treads Light Treads Disposable Heat Sink Medium Matter Pod (100) Structural Scanner Subdweller Optics Light Armor Plating Light Armor Plating Scrap Shield Tractor Beam Heavy EM Pulse Gun Datajack Peak State ------------ > --- POWER ------------ Subdweller Power Source > --- PROPULSION ------- Subdweller Monowheel Subdweller Monowheel > --- UTILITY ---------- Large Storage Unit Signal Interpreter > --- WEAPON ----------- Assault Rifle Subdweller Machine Gun > --- INVENTORY -------- Light Ion Engine Light Treads Light Treads Disposable Heat Sink Medium Matter Pod Structural Scanner Subdweller Optics Light Armor Plating Light Armor Plating Scrap Shield Tractor Beam Heavy EM Pulse Gun Subdweller Shrapnel Launcher Datajack [Rating: 13] Favorites ----------- Power Light Ion Engine Engine Light Ion Engine Propulsion Compact Wheel Treads Light Treads Leg Aluminum Leg Wheel Compact Wheel Utility Large Storage Unit Storage Large Storage Unit Processor Signal Interpreter Protection Light Armor Plating Weapon Assault Rifle Energy Gun Heavy EM Pulse Gun Energy Cannon Subdweller Beam Cannon Ballistic Gun Assault Rifle Launcher Subdweller Shrapnel Launcher Build | -11 -10 -10 ------- Run | Yrd Mat Sub Slots Evolved . | . . . Power . | . . . Propulsion . | . . . Utility . | . . . Weapon . | . . . Parts Attached 20 | . 10 10 Power 2 | . 1 1 Engine 2 | . 1 1 Core . | . . . Reactor . | . . . Propulsion 7 | . 3 4 Treads 2 | . 2 . Leg . | . . . Wheel 5 | . 1 4 Hover . | . . . Flight . | . . . Utility 4 | . 4 . Device . | . . . Storage 1 | . 1 . Processor 1 | . 1 . Hackware . | . . . Protection 2 | . 2 . Artifact . | . . . Weapon 7 | . 2 5 Energy Gun 2 | . 1 1 Energy Cannon 1 | . . 1 Ballistic Gun 3 | . 1 2 Ballistic Cannon . | . . . Launcher 1 | . . 1 Special Weapon . | . . . Impact Weapon . | . . . Slashing Weapon . | . . . Piercing Weapon . | . . . Special Melee Weapon . | . . . Unidentified Prototypes 1 | . 1 . Parts Lost 7 | . 1 6 Power 3 | . 1 2 Propulsion 2 | . . 2 Utility . | . . . Weapon 2 | . . 2 Highest Loss Streak 3 | . 1 3 To Critical Strikes . | . . . Average Slot Usage (%) 96 | . 97 93 Engine 13 | . 13 12 Treads 12 | . 14 5 Wheel 14 | . 13 19 Storage 14 | . 14 14 Processor 3 | . 1 14 Protection 8 | . 10 . Ballistic Gun 27 | . 27 23 Peak Build Rating 13 | 6 10 13 Average Rating 7 | 6 7 9 On Entrance 6 | 6 6 8 Naked Turns . | . . . Heaviest Build 33 | 12 31 33 Greatest Support 40 | 20 40 40 Greatest Overweight (x) 1 | . 1 1 Average Overweight (x) . | . . . Largest Inventory Capacity 15 | 8 15 15 Average Capacity 13 | 8 13 15 Most Carried 15 | 6 15 15 Average Carried 11 | 6 10 14 Final Capacity 15 | 8 15 15 Final Carried 15 | 6 15 14 Class Distribution -------------------- 93% | Mutant 6% | Scavenger-Mutant Dominant Class ---------------- Mutant | -10/Materials Mutant | -10/Subcaves Resources | -11 -10 -10 ----------- Run | Yrd Mat Sub Matter Collected 840 | 200 509 131 Remotely . | . . . Salvage Created 741 | . 463 278 Parts 54 | . 31 23 Haulers Intercepted 2 | . 2 . Recyclers Shooed 1 | . 1 . Parts Field Recycled . | . . . Retrieved Matter . | . . . Parts Self-Destructed 6 | . . 6 Prevented . | . . . Kills | -11 -10 -10 ------- Run | Yrd Mat Sub Combat Hostiles Destroyed 19 | . 10 9 Guns 18 | . 10 8 AOE 1 | . . 1 Classes Destroyed 8 | . 7 1 Worker 2 | . 2 . Hauler 2 | . 2 . Recycler 1 | . 1 . Operator 1 | . 1 . Watcher 2 | . 2 . Swarmer 12 | . 9 3 Grunt 1 | . 1 . Subdweller 6 | . . 6 Best Kill Streak 3 | . 3 3 Combat Bots Only 3 | . 3 3 Max Kills in Single Turn 2 | . 2 1 Gunslinging 1 | . 1 . Exploded 1 | . . 1 Melee . | . . . Uniques/NPCs Destroyed . | . . . Combat | -11 -10 -10 -------- Run | Yrd Mat Sub Hostile Shots Fired 116 | . 54 62 Missed 38 | . 21 17 Damage Taken 1184 | . 316 868 Core 277 | . 46 231 Absorbed by Shields . | . . . Core Remaining (%) 100 | 100 . . Volleys Fired 91 | . 53 38 Largest 2 | . 2 2 Hottest 50 | . 40 50 Shots Fired 169 | . 106 63 Gun 166 | . 106 60 Cannon . | . . . Launcher 3 | . . 3 Special . | . . . Kinetic 161 | . 106 55 Thermal . | . . . Explosive . | . . . Electromagnetic 8 | . . 8 Robot Hit Streak 13 | . 5 13 Robot Miss Streak 5 | . 5 3 Penetration Max . | . . . Secondary Targets 4 | . 2 2 Max Gunslinging Chain 1 | . 1 1 Shots Hit Robots 100 | . 52 48 Core Hits 43 | . 26 17 Critical Kills . | . . . Critical Parts Destroyed 1 | . 1 . Critical Strikes 1 | . 1 . Destroy 1 | . 1 . Melee Attacks . | . . . Impact . | . . . Slashing . | . . . Piercing . | . . . Sneak Attacks . | . . . Combat Hostiles . | . . . Follow-up Attacks . | . . . Damage Inflicted 1531 | . 691 840 Guns 1329 | . 691 638 Cannons . | . . . Explosions 202 | . . 202 Melee . | . . . Ramming . | . . . Kinetic 1454 | . 691 763 Thermal . | . . . Explosive . | . . . Electromagnetic 77 | . . 77 Impact . | . . . Slashing . | . . . Piercing . | . . . Highest Corruption 1 | . 1 1 Average Corruption 1 | . 1 1 Corruption Purged . | . . . Corruption Blocked . | . . . Effects 10 | . 7 3 Message Errors 4 | . 4 . Matter Fused 1 | . 1 . Heat Flow Errors 2 | . . 2 Energy Discharges 2 | . 2 . Data Loss (minor) 1 | . . 1 Overload Shots . | . . . Overflow Damage . | . . . Projectiles . | . . . Explosions . | . . . Melee . | . . . Knockbacks . | . . . Impact . | . . . Kinetic . | . . . Secondary . | . . . Self-Inflicted Damage 37 | . . 37 Shots 1 | . . 1 Rammed . | . . . Targets Rammed . | . . . Kicked . | . . . Crushed . | . . . Highest Temperature 281 | . 281 254 Average Temperature 124 | . 145 111 Received Heat Transfer 411 | . 12 399 Effects 1 | . . 1 Energy Bleed 1 | . . 1 Siege Activations . | . . . Robots Corrupted . | . . . Combat Hostiles . | . . . Parts Fried . | . . . Impact Corruptions . | . . . Robots Melted . | . . . Combat Hostiles . | . . . Parts Melted . | . . . Heat Transferred . | . . . Parts Sabotaged . | . . . Parts Stolen . | . . . Parts Stripped . | . . . Power Chain Reactions . | . . . Alert | -11 -10 -10 ------- Run | Yrd Mat Sub Peak Influence 225 | . 225 . Initial . | . . . Average 47 | . 47 . Maximum Alert Level 1 | . 1 . Low Security (%) 93 | 100 93 . Level 1 6 | . 6 . Level 2 . | . . . Level 3 . | . . . Level 4 . | . . . Level 5 . | . . . High Security . | . . . Max Security . | . . . Squads Dispatched 2 | . 2 . Investigation 1 | . 1 . Extermination . | . . . Reinforcement 1 | . 1 . Assault . | . . . Garrison . | . . . Intercept . | . . . Searches Triggered . | . . . Construction Impeded . | . . . Haulers Reinforced . | . . . Active Scanning Responses . | . . . Cargo Convoy Interrupts . | . . . Stealth | -11 -10 -10 --------- Run | Yrd Mat Sub Distress Signals . | . . . Communications Jammed . | . . . Distress Signals . | . . . Times Spotted 35 | . 22 13 Peak Tracking Total 3 | . 3 3 Tactical Retreats . | . . . Traps | -11 -10 -10 ------- Run | Yrd Mat Sub Traps Triggered 3 | . 3 . Indirectly . | . . . Trap Hack Attempts . | . . . Triggered . | . . . Disarmed . | . . . Reprogrammed . | . . . Reused . | . . . Traps Extracted . | . . . Installed . | . . . Triggered . | . . . Machines | -11 -10 -10 ---------- Run | Yrd Mat Sub Machines Disabled . | . . . Max in Single Turn . | . . . Machines Repaired . | . . . Machines Dismantled . | . . . Machines Sabotaged . | . . . Overloaded Fab Kills . | . . . Hacking | -11 -10 -10 --------- Run | Yrd Mat Sub Machines Accessed 6 | . 6 . Terminals 6 | . 6 . Fabricators . | . . . Repair Stations . | . . . Recycling Units . | . . . Scanalyzers . | . . . Garrison Access . | . . . Total Hacks 17 | . 17 . Successful 12 | . 12 . Failed 5 | . 5 . Catastrophic . | . . . Database Lockouts . | . . . Manual 16 | . 16 . Terminals 17 | . 17 . Fabricators . | . . . Repair Stations . | . . . Recycling Units . | . . . Scanalyzers . | . . . Garrison Access . | . . . Terminal Hacks 6 | . 6 . Branch Access Points 1 | . 1 . Emergency Access Points 1 | . 1 . Terminal Index 1 | . 1 . Locate Traps 1 | . 1 . Recall Reinforcements 1 | . 1 . Zone Layout 1 | . 1 . Fabricator Hacks . | . . . Repair Station Hacks . | . . . Recycling Unit Hacks . | . . . Scanalyzer . | . . . Garrison Access Hacks . | . . . Unauthorized Hacks 6 | . 6 . Terminals 6 | . 6 . Botnet 6 | . 6 . Fabricators . | . . . Repair Stations . | . . . Recycling Units . | . . . Scanalyzers . | . . . Garrison Access . | . . . Data Cores Recovered . | . . . Used . | . . . Hacking Detections 6 | . 6 . Full Trace Events 1 | . 1 . Feedback Events . | . . . Feedback Blocked . | . . . Robot Schematics Acquired . | . . . Robots Built . | . . . Authchips . | . . . Time . | . . . Total Robot Build Rating . | . . . Part Schematics Acquired . | . . . Parts Built . | . . . Authchips . | . . . Time . | . . . Total Part Build Rating . | . . . Parts Repaired . | . . . Time . | . . . Parts Recycled . | . . . Recycled Matter . | . . . Retrieved Matter . | . . . Retrieved Components . | . . . Parts Scanalyzed . | . . . Part Schematics Acquired . | . . . Parts Damaged . | . . . Bothacking | -11 -10 -10 ------------ Run | Yrd Mat Sub Used RIF Installer . | . . . Robots Hacked . | . . . Non-combat . | . . . Combat . | . . . Robot Hacks Applied . | . . . Relay Couplers Released . | . . . Fabnet Peak Effective % . | . . . Robots Rewired . | . . . Allies Hacked . | . . . Hacks Repelled . | . . . Allies | -11 -10 -10 -------- Run | Yrd Mat Sub Total Allies . | . . . Largest Group . | . . . Highest-Rated Group . | . . . Highest-Rated Ally . | . . . Total Orders . | . . . Ally Attacks . | . . . Total Damage . | . . . Kills . | . . . Allies Corrupted . | . . . Allies Melted . | . . . Intel | -11 -10 -10 ------- Run | Yrd Mat Sub Robot Analysis Total . | . . . Derelict Logs Recovered . | . . . Drone Launches . | . . . Drone Recoveries . | . . . Exploration | -11 -10 -10 ------------- Run | Yrd Mat Sub Turns Passed 2058 | 2 1711 345 Spaces Moved 1204 | 2 1007 195 Core . | . . . Treads 389 | . 389 . Legs 2 | 2 . . Wheels 813 | . 618 195 Hover . | . . . Flight . | . . . Fastest Speed 100 | 120 100 100 Average Speed 143 | 120 149 111 Slowest Speed 240 | 120 240 120 Overloaded Moves . | . . . Propulsion Burnouts . | . . . Robots Hopped . | . . . Cave-ins Triggered . | . . . Exploration Rate (%) 37 | 2 93 18 Regions Visited 2 Branch Regions 1 Pre-discovered Areas . | . . . Known Exits Taken 1 | . 1 . Unknown Exits Taken 1 | 1 . . Scrap Searched . | . . . Spaces Dug . | . . . Terrain Destroyed 29 | . . 29 Melee . | . . . Projectile . | . . . AOE 29 | . . 29 Terrain Rammed . | . . . Walls Destroyed . | . . . Machines Disabled . | . . . Actions | -11 -10 -10 --------- Run | Yrd Mat Sub Total 1369 | 1 1105 263 Wait 22 | . 14 8 Move 1202 | 1 1006 195 Hop . | . . . Pick Up 16 | . 13 3 Fast Attach 6 | . 4 2 Attach 4 | . 1 3 Detach 3 | . 2 1 Swap 10 | . 5 5 Drop 14 | . 7 7 Fire 91 | . 53 38 Melee . | . . . Ram . | . . . Kick . | . . . Crush . | . . . Escape Stasis . | . . . Rewire 1 | . . 1 Trap . | . . . Miscellaneous . | . . . Route ------- -11/Scrapyard -10/Materials (discovered 5 exits: [*Mat x3] / *Min / *Sub) -10/Subcaves History --------- Turn | Location | Event 1 | -11/Scrapyard | Discovered new exit (range 1) 3 | -11/Scrapyard | Entered Materials 94 | -10/Materials | Identified exit to Mines 284 | -10/Materials | Discovered new exit (range 7) 306 | -10/Materials | Build established: Mutant 595 | -10/Materials | Discovered new exit (range 16) 867 | -10/Materials | Discovered new exit (range 13) 973 | -10/Materials | Discovered new exit (range 8) 1568 | -10/Materials | Identified exit to Subcaves 1714 | -10/Materials | Entered Subcaves 1914 | -10/Subcaves | A Subdweller sparked back to life 1914 | -10/Subcaves | A Subdweller sparked back to life 1914 | -10/Subcaves | A Subdweller sparked back to life 2002 | -10/Subcaves | Core integrity fell below 50% 2013 | -10/Subcaves | Core integrity fell below 20% 2035 | -10/Subcaves | Lost 3 parts (1n2w) 2059 | -10/Subcaves | Destroyed self with Subdweller Shrapnel Launcher Last Messages --------------- 01952_ Acquired Sub. Power Source. 01955_ Dropped Lgt. Cannon. 01956_ Acquired Sub. Shrapnel Launcher. 01974_ Dropped Sub. Monowheel. 01975_ Dropped Com. Wheel. 01982_ System corrupted: Heat flow error (+166). 01983_ Subatomizers dissect the Disposable Heat Sink. 01999_ Assault Rifle destroyed. 02001_ QV-7BP(R) destroyed. 02002_ Sub. Monowheel destroyed. 02002_ Critical hit (Meltdown: +270). 02004_ Overheating: Energy bleed (-34). 02004_ Sub. Machine Gun destroyed. 02020_ QG-C9A(R) destroyed. 02022_ Acquired 35 matter. 02026_ Acquired Sub. Beam Cannon. 02030_ Extracted 1 energy. 02055_ Sub. Power Source destroyed. 02057_ 4K-F5M(R) destroyed. Map ----- +----------------------------------------------------+ | ?????????????????????????????????????????????????? | | ?????????????????????????????????????????????????? | | ?????????????????????????????????????????????????? | | ?????????????????????????????????????????????????? | | ?????????????????????????????????????????????????? | | ?????????????????????????????????????????????????? | | ?????????????????????????????????????????????????? | | ?????????????????????????????????????????????????? | | ?????????????????????????????????????????????????? | | ?????????????????????????????????????????????????? | | ?########????????????????????????????????????????? | | ## ###???????????####???????????????????????? | | # #?????####??# ???##??????????????????? | | #?????# #### ### #??????????????????? | | ??? ##???## ;;;; ??????????????????? | | ????# #??## & ???????????????????? | | ##?### "#???# &% ???????????????????? | | ###"""" #???# ! #???????????????????? | | "" ]" ##### #; R ##??????????????????? | | "%=! # ## !&#; ???????????????????? | | % && *&#; ???????????????????? | | [#]! " # # # !%; ????????????????????? | | ###""" "######! &# ;; ?????????????????????? | | ## "#???# =& #?#;; ;;?????????????????????? | | # "###?# ####; ;#?????????????????????? | | #?## ##" @ #####?????????????????? | | ### """ #?????????????????? | | # ## ### "" #???????????? | | ###### ### ## #??????????? | | ?????# ## "### #### ##??????????? | | ?????# #? ####????? #??????????? | | ????? ## #? #????????????????????? | | ????? ### ##? ????????????????????? | | ???? ??# ##?? ???????????????????? | | ???? ??# #???# # ??????????????????? | | ???? ###### ?? #????####??????????????????? | | ????#####????# ?? ###??????????????????????????? | | ?????????????####?##?????????????????????????????? | | ?????????????????????????????????????????????????? | | ?????????????????????????????????????????????????? | | ?????????????????????????????????????????????????? | | ?????????????????????????????????????????????????? | | ?????????????????????????????????????????????????? | | ?????????????????????????????????????????????????? | | ?????????????????????????????????????????????????? | | ?????????????????????????????????????????????????? | | ?????????????????????????????????????????????????? | | ?????????????????????????????????????????????????? | | ?????????????????????????????????????????????????? | | ?????????????????????????????????????????????????? | +----------------------------------------------------+ Best States ------------- Heat Dissipation 25 Energy Generation 15 Energy Capacity 200 Matter Stores 300 Matter Capacity 300 Sight Range 16 Terrain Scan Density 10 Armor Coverage 150 Power Shielding 33 Evasion (%) 40 Recoil Reduction 2 Item Schematics ----------------- None Robot Schematics ------------------ None Fabricated ------------ Nothing Alien Tech Used ----------------- None Achievements -------------- None Challenges ------------ None Game ------ Seed ReinforcedCoordinationMask Manual? 0 Play Time 00:15:52 Cumulative 76.3 hours Start 2024.11.27 @ 12:51:37 End 2024.11.27 @ 13:04:06 Sessions 1 Manual Loads 0 Difficulty Rogue Special Mode None Game No. 95 Rogue 51 Adventurer 44 Explorer 0 Win Type - Total 0 Types 0/0/0/0/0/0/0/0/0 Lore% 21 Gallery% 47 Achievement% 35 Wizard Run 0 Options --------- Layout 1 ASCII 0 Keyboard 1 Movement Vi Keybinds 0 Fullscreen 1 Font 24/Terminus Map View 50x40 Zoom Use 0% Tactical HUD 1 Map Filters NONE Filters NONE Steam 1 RUN: 874334a1-5ad5-4bae-8a0a-01a287243a70